Cogmind - Beta 9.6 @@@ ROGUE MODE // 2020.05.02 @ 20:29:58 Player: alice_fexa Result: Self-destructed Performance ------------- Evolutions (5) 2500 Regions Visited (20) 4000 Robots Destroyed (79) 395 Value Destroyed (1424) 1424 Prototype IDs (97) 1940 Alien Tech Used (1) 200 Bonus (1766) 1766 TOTAL SCORE: 12225 Bonus ------- Follower Combat Kills 191 Aligned with FarCom 300 Met Data Miner 300 Met Warlord at Base 500 MAIN.C Attacked Warlord 500 Friendly Fire -25 Cogmind --------- Core Integrity 948/1000 Matter 300/300 Energy 124/130 System Corruption 0% Temperature Cool (6) Movement Flying (27) Location -4/Proximity Caves Parts ------- > --- POWER (1) -------- Mini Fusion Reactor > --- PROPULSION (2) --- Experimental Cesium-ion Thruster Cooled Impulse Thruster > --- UTILITY (12) ----- Medium Storage Unit Gravity Neutralizing Apparatus Experimental Sensor Array Experimental Signal Interpreter Advanced Melee Analysis Suite Experimental Utility Shielding Advanced Hacking Suite Advanced Hacking Suite Advanced Hacking Suite Advanced Hacking Suite > --- WEAPON (3) ------- Improved Datajack Scythe Plasma Lance > --- INVENTORY (8) ---- Mini Fusion Reactor Experimental Cesium-ion Thruster Cooled Impulse Thruster Energy Well (500) Weight Redist. System Experimental Sensor Array System Purifier Grenade Launcher Peak State ------------ > --- POWER ------------ Mini Fusion Reactor > --- PROPULSION ------- Experimental Cesium-ion Thruster Cooled Impulse Thruster > --- UTILITY ---------- Medium Storage Unit Gravity Neutralizing Apparatus Experimental Sensor Array Experimental Signal Interpreter Advanced Melee Analysis Suite Experimental Utility Shielding Advanced Hacking Suite Advanced Hacking Suite Advanced Hacking Suite Advanced Hacking Suite Ghost Barrier Quantum Router > --- WEAPON ----------- Improved Datajack Scythe Plasma Lance > --- INVENTORY -------- Mini Fusion Reactor Experimental Cesium-ion Thruster Cooled Impulse Thruster Energy Well Weight Redist. System Experimental Sensor Array System Purifier Grenade Launcher [Rating: 115] Favorites ----------- Power Backup Power VII Engine Ion Engine Power Core Backup Power VII Reactor Mini Fusion Reactor Propulsion Improved Cesium-ion Thruster Treads Light Treads Wheel Compact Wheel Flight Unit Improved Cesium-ion Thruster Utility Hacking Suite Device Weight Redist. System Storage Medium Storage Unit Processor Improved Signal Interpreter Hackware Hacking Suite Protection Improved Light Armor Plating Weapon Scythe Energy Gun Particle Gun Energy Cannon EM Pulse Cannon Ballistic Gun Assault Rifle Launcher Grenade Launcher Slashing Weapon Scythe Piercing Weapon Spear Special Melee Weapon Improved Datajack Build | -11 -10 -10 -10 -9 -8 -7 -7 -7 -7 -6 -6 -6 -6 -5 -5 -5 -5 -5 -5 -4 ------- Run | Scr Mat Min Exi Min Mat Fac Low Low Dat Pro Fac Was Fac Fac Was Fac Upp Upp War Pro Slots Evolved 10 | . . . . . 4 2 . . . . 2 . . 2 . . . . . . Power . | . . . . . . . . . . . . . . . . . . . . . Propulsion . | . . . . . . . . . . . . . . . . . . . . . Utility 10 | . . . . . 4 2 . . . . 2 . . 2 . . . . . . Weapon . | . . . . . . . . . . . . . . . . . . . . . Parts Attached 92 | 6 11 . . 3 19 15 2 . 2 1 14 . 4 4 . 5 . 1 5 . Power 7 | 1 1 . . . 2 1 . . . . . . . 1 . 1 . . . . Engine 4 | 1 1 . . . 2 . . . . . . . . . . . . . . . Core 2 | . . . . . . 1 . . . . . . . 1 . . . . . . Reactor 1 | . . . . . . . . . . . . . . . . 1 . . . . Propulsion 16 | 2 1 . . 1 5 4 . . . . 1 . . 1 . . . . 1 . Treads 4 | 1 1 . . . 2 . . . . . . . . . . . . . . . Leg . | . . . . . . . . . . . . . . . . . . . . . Wheel 4 | 1 . . . 1 2 . . . . . . . . . . . . . . . Hover . | . . . . . . . . . . . . . . . . . . . . . Flight 8 | . . . . . 1 4 . . . . 1 . . 1 . . . . 1 . Utility 48 | 1 4 . . . 8 8 1 . 2 1 13 . 3 2 . 2 . . 3 . Device 15 | . . . . . 2 3 1 . . 1 4 . . . . 1 . . 3 . Storage 8 | 1 4 . . . . 2 . . . . 1 . . . . . . . . . Processor 5 | . . . . . 2 . . . . . 2 . . . . 1 . . . . Hackware 10 | . . . . . 1 3 . . . . 2 . 3 1 . . . . . . Protection 10 | . . . . . 3 . . . 2 . 4 . . 1 . . . . . . Artifact . | . . . . . . . . . . . . . . . . . . . . . Weapon 21 | 2 5 . . 2 4 2 1 . . . . . 1 . . 2 . 1 1 . Energy Gun 2 | . . . . 1 1 . . . . . . . . . . . . . . . Energy Cannon 2 | . . . . 1 1 . . . . . . . . . . . . . . . Ballistic Gun 8 | 2 4 . . . 2 . . . . . . . . . . . . . . . Ballistic Cannon . | . . . . . . . . . . . . . . . . . . . . . Launcher 2 | . 1 . . . . . . . . . . . . . . . . 1 . . Special Weapon . | . . . . . . . . . . . . . . . . . . . . . Impact Weapon . | . . . . . . . . . . . . . . . . . . . . . Slashing Weapon 1 | . . . . . . 1 . . . . . . . . . . . . . . Piercing Weapon 2 | . . . . . . . 1 . . . . . . . . 1 . . . . Special Melee Weapon 4 | . . . . . . 1 . . . . . . 1 . . 1 . . 1 . Unidentified Prototypes 9 | . . . . . 2 1 1 . . . 2 . . . . . . . 3 . Parts Lost 3 | . . . . . . . . . . . . . . 1 . . . . . 2 Power 1 | . . . . . . . . . . . . . . 1 . . . . . . Propulsion . | . . . . . . . . . . . . . . . . . . . . . Utility 2 | . . . . . . . . . . . . . . . . . . . . 2 Weapon . | . . . . . . . . . . . . . . . . . . . . . Highest Loss Streak 2 | . . . . . . . . . . . . . . 1 . . . . . 2 Average Slot Usage (%) 99 | . 98 100 100 100 99 99 99 100 100 100 99 100 100 94 94 99 100 100 100 95 Engine 4 | . 14 14 14 14 9 2 . . . . . . . . . . . . . . Core 2 | . . . . . . 4 7 7 7 7 6 6 6 5 5 . . . . . Treads 4 | . 14 14 14 14 9 . . . . . . . . . . . . . . . Wheel 4 | . 14 14 14 14 8 . . . . . . . . . . . . . . . Flight 7 | . . . . . . 15 14 14 14 14 11 12 12 11 11 11 11 11 11 11 Device 9 | . . . . . 9 15 14 14 9 14 12 12 12 11 11 11 11 11 11 11 Storage 12 | . 26 28 28 28 18 7 7 7 7 7 6 6 6 5 5 5 5 5 5 5 Processor 6 | . . . . . 8 7 7 7 7 7 6 6 6 5 5 10 11 11 11 11 Hackware 20 | . . . . . 8 27 28 28 28 28 31 31 31 33 33 33 33 33 33 29 Protection 3 | . . . . . 8 1 . . 5 . 5 6 6 5 5 5 5 5 5 5 Energy Cannon 1 | . . . . . 7 . . . . . . . . . . . . . . . Ballistic Gun 7 | . 27 28 28 21 9 . . . . . . . . . . . . . . . Slashing Weapon 3 | . . . . . . 6 7 7 7 7 6 6 6 5 5 5 5 5 5 5 Piercing Weapon 2 | . . . . . . . 5 7 7 7 6 6 6 5 5 5 5 5 5 5 Special Melee Weapon 3 | . . . . . . 6 7 7 7 7 6 6 6 5 5 4 5 4 2 5 Naked Turns . | . . . . . . . . . . . . . . . . . . . . . Heaviest Build 70 | 13 57 57 57 65 70 16 18 18 20 18 21 21 21 21 19 23 23 25 25 23 Greatest Support 30 | 16 16 16 16 16 20 20 22 22 22 22 22 22 22 22 21 27 27 27 30 30 Greatest Overweight (x) 4 | . 3 3 3 4 4 . . . . . . . . . . . . . . . Average Overweight (x) . | . . 3 3 3 3 . . . . . . . . . . . . . . . Largest Inventory Capacity 18 | 6 18 18 18 18 18 18 8 8 8 8 8 8 8 8 8 8 8 8 8 8 Average Capacity 10 | 5 9 18 18 18 18 6 8 8 8 8 8 8 8 8 8 8 8 8 8 8 Most Carried 18 | 4 18 18 18 18 18 18 8 7 8 8 8 8 8 8 7 8 8 8 8 8 Average Carried 10 | 2 8 17 17 17 17 6 7 7 7 8 7 8 8 7 7 7 8 8 8 8 Final Capacity 18 | 6 18 18 18 18 18 8 8 8 8 8 8 8 8 8 8 8 8 8 8 8 Final Carried 18 | 4 18 18 18 18 18 8 7 7 8 8 8 8 8 7 7 8 8 8 8 8 Class Distribution -------------------- 37% | Mutant 37% | Wizard-Sprinter 23% | Hacker-Sprinter Dominant Class ---------------- Mutant | -10/Materials Mutant | -10/Mines Mutant | -10/Exiles Mutant | -9/Mines Mutant | -8/Materials Hacker-Sprinter | -7/Factory Hacker-Sprinter | -7/Lower Caves Hacker-Sprinter | -7/Lower Caves Hacker-Sprinter | -7/Data Miner Hacker-Sprinter | -6/Proximity Caves Wizard-Sprinter | -6/Factory Wizard-Sprinter | -6/Waste Wizard-Sprinter | -6/Factory Wizard-Sprinter | -5/Factory Wizard-Sprinter | -5/Waste Wizard-Sprinter | -5/Factory Wizard-Sprinter | -5/Upper Caves Wizard-Sprinter | -5/Upper Caves Wizard-Sprinter | -5/Warlord Wizard-Sprinter | -4/Proximity Caves Resources | -11 -10 -10 -10 -9 -8 -7 -7 -7 -7 -6 -6 -6 -6 -5 -5 -5 -5 -5 -5 -4 ----------- Run | Scr Mat Min Exi Min Mat Fac Low Low Dat Pro Fac Was Fac Fac Was Fac Upp Upp War Pro Matter Collected 1726 | 182 448 86 . 63 372 160 22 8 . 40 140 . 40 15 . 70 . . 80 . Remotely . | . . . . . . . . . . . . . . . . . . . . . Salvage Created 3242 | . 472 67 . 61 1144 204 . . 28 . 617 . 236 . . 278 . 45 . 90 Parts 172 | . 38 1 . 3 55 13 . . 4 . 25 . 9 . . 7 . 5 . 12 Haulers Intercepted 14 | . 2 . . . 4 3 . . . . 4 . . . . 1 . . . . Recyclers Shooed 1 | . . . . . . . . . . . 1 . . . . . . . . . Parts Field Recycled . | . . . . . . . . . . . . . . . . . . . . . Retrieved Matter . | . . . . . . . . . . . . . . . . . . . . . Parts Self-Destructed 33 | . . . . . . . . . . . . . . . . . . 2 31 . Prevented 4 | . . . . . . . . . . . . . . . . . . . 4 . Kills | -11 -10 -10 -10 -9 -8 -7 -7 -7 -7 -6 -6 -6 -6 -5 -5 -5 -5 -5 -5 -4 ------- Run | Scr Mat Min Exi Min Mat Fac Low Low Dat Pro Fac Was Fac Fac Was Fac Upp Upp War Pro Combat Hostiles Destroyed 29 | . 12 2 . 2 8 . . . . . . . . . . . . 3 . 2 Melee 2 | . . . . . . . . . . . . . . . . . . . . 2 Guns 15 | . 8 2 . 2 3 . . . . . . . . . . . . . . . Cannons 3 | . . . . . 3 . . . . . . . . . . . . . . . AOE 9 | . 4 . . . 2 . . . . . . . . . . . . 3 . . Classes Destroyed 12 | . 8 . . . 2 . . . . . . . . . . . . . . 2 Worker 6 | . 1 . . . 2 2 . . . . 1 . . . . . . . . . Builder 3 | . 1 . . . 2 . . . . . . . . . . . . . . . Hauler 14 | . 2 . . . 4 3 . . . . 4 . . . . 1 . . . . Recycler 8 | . 1 . . . 4 . . . . . 1 . 1 . . 1 . . . . Minesweeper 1 | . . . . . . . . . . . . . . . . . . . . 1 Operator 7 | . 1 . . . 1 2 . . . . 2 . . . . 1 . . . . Watcher 10 | . 1 . . . 4 . . . . . 2 . 3 . . . . . . . Swarmer 14 | . 9 1 . 1 . . . . . . . . . . . . . 3 . . Grunt 9 | . 3 1 . 1 4 . . . . . . . . . . . . . . . Sentry 3 | . . . . . 3 . . . . . . . . . . . . . . . Hunter 1 | . . . . . 1 . . . . . . . . . . . . . . . Master Thief 2 | . . . . . . . . . . . . . . . . . . . . 2 Best Kill Streak 7 | . 7 1 . 1 5 1 . . 1 . 1 . 1 . . 1 . 3 . 1 Combat Bots Only 4 | . 4 1 . 1 1 . . . . . . . . . . . . 3 . 1 Max Kills in Single Turn 3 | . 3 1 . 1 2 1 . . 1 . 1 . 1 . . 1 . 2 . 1 Gunslinging . | . . . . . . . . . . . . . . . . . . . . . Exploded 2 | . 2 . . . 1 . . . . . . . . . . . . 2 . . Melee 1 | . . . . . . . . . . . . . . . . . . . . 1 Uniques/NPCs Destroyed 1 | . . . . . . . . . 1 . . . . . . . . . . . Data Miner (-7/Data Miner) Combat | -11 -10 -10 -10 -9 -8 -7 -7 -7 -7 -6 -6 -6 -6 -5 -5 -5 -5 -5 -5 -4 -------- Run | Scr Mat Min Exi Min Mat Fac Low Low Dat Pro Fac Was Fac Fac Was Fac Upp Upp War Pro Damage Taken 1242 | . 358 . . 78 403 13 . . 46 38 60 . 90 57 . . . 79 . 20 Core 215 | . 96 . . . 32 5 . . . . 30 . . 18 . . . 28 . 6 Absorbed by Shields . | . . . . . . . . . . . . . . . . . . . . . Core Remaining (%) 90 | 100 . . . 61 94 . . . . 99 . . 96 . . . . . . . Volleys Fired 132 | . 55 5 . 6 64 . . . . . . . . . . . . 2 . . Largest 2 | . 2 2 . 2 2 . . . . . . . . . . . . 1 . . Hottest 89 | . 40 40 . 80 89 . . . . . . . . . . . . 30 . . Shots Fired 258 | . 107 10 . 12 127 . . . . . . . . . . . . 2 . . Gun 206 | . 104 10 . 11 81 . . . . . . . . . . . . . . . Cannon 47 | . . . . 1 46 . . . . . . . . . . . . . . . Launcher 5 | . 3 . . . . . . . . . . . . . . . . 2 . . Special . | . . . . . . . . . . . . . . . . . . . . . Kinetic 189 | . 104 10 . 11 64 . . . . . . . . . . . . . . . Thermal 17 | . . . . . 17 . . . . . . . . . . . . . . . Explosive 5 | . 3 . . . . . . . . . . . . . . . . 2 . . Electromagnetic 47 | . . . . 1 46 . . . . . . . . . . . . . . . Robot Hit Streak 17 | . 9 3 . 3 17 . . . . . . . . . . . . . . . Robot Miss Streak 6 | . 6 1 . 2 3 . . . . . . . . . . . . 1 . . Penetration Max . | . . . . . . . . . . . . . . . . . . . . . Secondary Targets 1 | . 1 . . . . . . . . . . . . . . . . . . . Max Gunslinging Chain 1 | . 1 . . . . . . . . . . . . . . . . . . . Shots Hit Robots 243 | . 57 6 . 7 83 28 . . 2 . 31 3 7 . . 5 . . 2 12 Core Hits 104 | . 27 3 . 3 36 7 . . 1 . 12 1 4 . . 2 . 4 . 4 Critical Hits 3 | . 1 . . . . 1 . . 1 . . . . . . . . . . . Critical Kills 1 | . . . . . . 1 . . . . . . . . . . . . . . Critical Parts Destroyed 1 | . 1 . . . . . . . . . . . . . . . . . . . Melee Attacks 423 | . . . . . . 110 1 2 11 24 118 3 41 14 . 58 3 4 9 25 Impact . | . . . . . . . . . . . . . . . . . . . . . Slashing 260 | . . . . . . 109 1 2 8 19 61 1 27 10 . 18 1 1 1 1 Piercing 151 | . . . . . . . . . 2 5 52 1 14 4 . 38 2 3 6 24 Sneak Attacks 34 | . . . . . . 9 . . 2 . 12 . 3 . . 5 . . 2 1 Combat Hostiles . | . . . . . . . . . . . . . . . . . . . . . Follow-up Attacks 8 | . . . . . . . . . . . 5 1 1 . . . . . . 1 Damage Inflicted 8121 | . 846 80 . 127 2014 1506 . . 108 . 1484 37 528 . . 526 . 251 . 614 Guns 1439 | . 589 80 . 98 672 . . . . . . . . . . . . . . . Cannons 1073 | . . . . 5 1068 . . . . . . . . . . . . . . . Explosions 806 | . 257 . . 24 274 . . . . . . . . . . . . 251 . . Melee 4803 | . . . . . . 1506 . . 108 . 1484 37 528 . . 526 . . . 614 Ramming . | . . . . . . . . . . . . . . . . . . . . . Kinetic 1200 | . 589 80 . 98 433 . . . . . . . . . . . . . . . Thermal 513 | . . . . . 513 . . . . . . . . . . . . . . . Explosive 508 | . 257 . . . . . . . . . . . . . . . . 251 . . Electromagnetic 1097 | . . . . 29 1068 . . . . . . . . . . . . . . . Impact . | . . . . . . . . . . . . . . . . . . . . . Slashing 2129 | . . . . . . 1506 . . . . 576 15 . . . . . . . 32 Piercing 2674 | . . . . . . . . . 108 . 908 22 528 . . 526 . . . 582 Highest Corruption 1 | . . . . 1 . . . . . . . . 1 . . . . . . . Average Corruption 1 | . . . . 1 . . . . . . . . 1 . . . . . . . Corruption Purged . | . . . . . . . . . . . . . . . . . . . . . Effects 2 | . . . . . . . . . . . . . 2 . . . . . . . Message Errors 1 | . . . . . . . . . . . . . 1 . . . . . . . Energy Discharges 1 | . . . . . . . . . . . . . 1 . . . . . . . Overload Shots . | . . . . . . . . . . . . . . . . . . . . . Overflow Damage 965 | . . . . . 36 314 . . . . 199 . 101 . . 164 . 38 . 113 Projectiles 29 | . . . . . 29 . . . . . . . . . . . . . . . Explosions 45 | . . . . . 7 . . . . . . . . . . . . 38 . . Melee 891 | . . . . . . 314 . . . . 199 . 101 . . 164 . . . 113 Knockbacks . | . . . . . . . . . . . . . . . . . . . . . Impact . | . . . . . . . . . . . . . . . . . . . . . Kinetic . | . . . . . . . . . . . . . . . . . . . . . Secondary . | . . . . . . . . . . . . . . . . . . . . . Self-Inflicted Damage 68 | . . . . . 68 . . . . . . . . . . . . . . . Shots 4 | . . . . . 4 . . . . . . . . . . . . . . . Rammed . | . . . . . . . . . . . . . . . . . . . . . Targets Rammed . | . . . . . . . . . . . . . . . . . . . . . Kicked . | . . . . . . . . . . . . . . . . . . . . . Crushed . | . . . . . . . . . . . . . . . . . . . . . Highest Temperature 49 | . . . . 18 49 . . . . 3 . . . . . . . . . . Average Temperature 14 | . . . . 12 14 . . . . 3 . . . . . . . . . . Received Heat Transfer 243 | . 72 . . . 99 . . . 6 21 . . . 27 . . . 18 . . Siege Activations . | . . . . . . . . . . . . . . . . . . . . . Robots Corrupted . | . . . . . . . . . . . . . . . . . . . . . Combat Hostiles . | . . . . . . . . . . . . . . . . . . . . . Parts Fried 5 | . . . . . 5 . . . . . . . . . . . . . . . Impact Corruptions . | . . . . . . . . . . . . . . . . . . . . . Robots Melted . | . . . . . . . . . . . . . . . . . . . . . Combat Hostiles . | . . . . . . . . . . . . . . . . . . . . . Parts Melted 1 | . . . . . 1 . . . . . . . . . . . . . . . Heat Transferred 881 | . . . . . 881 . . . . . . . . . . . . . . . Parts Sabotaged . | . . . . . . . . . . . . . . . . . . . . . Parts Stolen 2 | . . . . . . . . . . . . . . . . . . . . 2 Parts Stripped . | . . . . . . . . . . . . . . . . . . . . . Power Chain Reactions 5 | . . . . . 5 . . . . . . . . . . . . . . . Missiles Intercepted . | . . . . . . . . . . . . . . . . . . . . . Latent Energy Used 62 | . . . . 62 . . . . . . . . . . . . . . . . LE Corruption 1 | . . . . 1 . . . . . . . . . . . . . . . . Alert | -11 -10 -10 -10 -9 -8 -7 -7 -7 -7 -6 -6 -6 -6 -5 -5 -5 -5 -5 -5 -4 ------- Run | Scr Mat Min Exi Min Mat Fac Low Low Dat Pro Fac Was Fac Fac Was Fac Upp Upp War Pro Peak Influence 498 | . 237 184 . 119 144 152 . . . . 472 15 498 55 20 426 . . . . Average Influence 68 | . 85 88 . 78 46 48 . . . . 130 4 54 22 7 38 . . . . Maximum Alert Level 2 | . 1 . . . . . . . . . 2 . 2 . . 2 . . . . Low Security (%) 93 | 100 85 100 . 100 100 100 . . . . 73 100 96 100 100 98 . . . . Level 1 4 | . 14 . . . . . . . . . 15 . . . . . . . . . Level 2 2 | . . . . . . . . . . . 11 . 3 . . 1 . . . . Level 3 . | . . . . . . . . . . . . . . . . . . . . . Level 4 . | . . . . . . . . . . . . . . . . . . . . . Level 5 . | . . . . . . . . . . . . . . . . . . . . . High Security . | . . . . . . . . . . . . . . . . . . . . . Max Security . | . . . . . . . . . . . . . . . . . . . . . Squads Dispatched 18 | . 2 . . . 1 6 . . . . 5 . 2 . . 2 . . . . Investigation 3 | . 1 . . . . 1 . . . . . . 1 . . . . . . . Extermination 8 | . . . . . . 3 . . . . 3 . 1 . . 1 . . . . Reinforcement 7 | . 1 . . . 1 2 . . . . 2 . . . . 1 . . . . Assault . | . . . . . . . . . . . . . . . . . . . . . Garrison . | . . . . . . . . . . . . . . . . . . . . . Intercept . | . . . . . . . . . . . . . . . . . . . . . Construction Impeded . | . . . . . . . . . . . . . . . . . . . . . Haulers Reinforced 1 | . . . . . . 1 . . . . . . . . . . . . . . Stealth | -11 -10 -10 -10 -9 -8 -7 -7 -7 -7 -6 -6 -6 -6 -5 -5 -5 -5 -5 -5 -4 --------- Run | Scr Mat Min Exi Min Mat Fac Low Low Dat Pro Fac Was Fac Fac Was Fac Upp Upp War Pro Distress Signals 7 | . 1 . . 1 3 . . . . . 2 . . . . . . . . . Communications Jammed . | . . . . . . . . . . . . . . . . . . . . . Distress Signals . | . . . . . . . . . . . . . . . . . . . . . Times Spotted 147 | . 26 7 . 5 23 18 . . 4 3 17 5 9 5 4 2 . 4 13 2 Peak Tracking Total 11 | . 4 3 . 2 3 3 . . 4 3 4 4 5 5 6 2 . 2 11 2 Tactical Retreats 21 | . 2 . . . 1 3 . . . . 6 . 4 3 . 1 . 1 . . Traps | -11 -10 -10 -10 -9 -8 -7 -7 -7 -7 -6 -6 -6 -6 -5 -5 -5 -5 -5 -5 -4 ------- Run | Scr Mat Min Exi Min Mat Fac Low Low Dat Pro Fac Was Fac Fac Was Fac Upp Upp War Pro Traps Triggered 11 | . . . . . . 1 . . . . 6 . 3 1 . . . . . . Indirectly . | . . . . . . . . . . . . . . . . . . . . . Trap Hack Attempts 20 | . . . . . . . . . . . 19 . . . . 1 . . . . Triggered . | . . . . . . . . . . . . . . . . . . . . . Disarmed 6 | . 6 . . . . . . . . . . . . . . . . . . . Reprogrammed 13 | . . . . . . . . . . . 12 . . . . 1 . . . . Reused 3 | . . . . . . . . . . . 3 . . . . . . . . . Traps Extracted . | . . . . . . . . . . . . . . . . . . . . . Installed . | . . . . . . . . . . . . . . . . . . . . . Triggered 9 | . . . . . . . 1 . . . 3 . . . . . . . 4 1 Machines | -11 -10 -10 -10 -9 -8 -7 -7 -7 -7 -6 -6 -6 -6 -5 -5 -5 -5 -5 -5 -4 ---------- Run | Scr Mat Min Exi Min Mat Fac Low Low Dat Pro Fac Was Fac Fac Was Fac Upp Upp War Pro Machines Disabled 4 | . . 2 . . 1 . . . 1 . . . . . . . . . . . Max in Single Turn 1 | . . . . . 1 . . . 1 . . . . . . . . . . . Garrison Access 7 | . . . . . 1 1 . . . . 1 . 2 1 . 1 . . . . Machines Sabotaged . | . . . . . . . . . . . . . . . . . . . . . Garrisons Compromised . | . . . . . . . . . . . . . . . . . . . . . Overloaded Fab Kills . | . . . . . . . . . . . . . . . . . . . . . Fab Network Shutdowns 3 | . . . . . . . . . . . 1 . 1 . . 1 . . . . Hacking | -11 -10 -10 -10 -9 -8 -7 -7 -7 -7 -6 -6 -6 -6 -5 -5 -5 -5 -5 -5 -4 --------- Run | Scr Mat Min Exi Min Mat Fac Low Low Dat Pro Fac Was Fac Fac Was Fac Upp Upp War Pro Machines Accessed 100 | . 8 . 2 . 8 20 . . 2 . 18 . 18 8 . 14 . . 2 . Terminals 64 | . 7 . . . 5 15 . . . . 10 . 13 5 . 9 . . . . Fabricators 10 | . . . . . . 2 . . . . 3 . 1 2 . 2 . . . . Repair Stations 6 | . 1 . . . 1 2 . . . . 1 . . . . 1 . . . . Recycling Units 7 | . . . . . 1 . . . . . 3 . 2 . . 1 . . . . Scanalyzers . | . . . . . . . . . . . . . . . . . . . . . Garrison Access 7 | . . . . . 1 1 . . . . 1 . 2 1 . 1 . . . . Total Hacks 428 | . 34 . 2 . 22 63 . . 11 . 87 . 91 37 . 76 . . 5 . Successful 301 | . 21 . 2 . 14 34 . . 11 . 58 . 64 33 . 59 . . 5 . Failed 125 | . 12 . . . 8 28 . . . . 29 . 27 4 . 17 . . . . Catastrophic 20 | . 1 . . . 3 3 . . . . 6 . 6 . . 1 . . . . Database Lockouts 2 | . 1 . . . . 1 . . . . . . . . . . . . . . Manual 253 | . 21 . 1 . 14 27 . . . . 50 . 65 26 . 48 . . 1 . Terminals 326 | . 30 . . . 18 53 . . . . 65 . 78 25 . 57 . . . . Fabricators 50 | . . . . . . 4 . . . . 12 . 9 11 . 14 . . . . Repair Stations 18 | . 4 . . . 2 4 . . . . 6 . . . . 2 . . . . Recycling Units 7 | . . . . . 1 . . . . . 3 . 2 . . 1 . . . . Scanalyzers . | . . . . . . . . . . . . . . . . . . . . . Garrison Access 9 | . . . . . 1 2 . . . . 1 . 2 1 . 2 . . . . Terminal Hacks 189 | . 13 . 2 . 8 24 . . 11 . 32 . 42 16 . 36 . . 5 . Record 7 | . . . 1 . . . . . 6 . . . . . . . . . . . Part Schematic 14 | . . . . . 2 1 . . 2 . 1 . 2 3 . 3 . . . . Robot Analysis 6 | . 1 . . . . 1 . . . . . . 1 . . 3 . . . . Prototype ID Bank 31 | . 3 . . . . 1 . . 3 . 3 . 14 2 . 1 . . 4 . Open Door 1 | . . . . . . . . . . . . . . . . . . . 1 . Level Access Points 2 | . . . . . . . . . . . 1 . 1 . . . . . . . Branch Access Points 2 | . . . . . . . . . . . . . . 1 . 1 . . . . Machine Index 3 | . . . . . . . . . . . . . 1 1 . 1 . . . . Terminal Index 2 | . . . . . . 1 . . . . 1 . . . . . . . . . Fabricator Index 2 | . . . . . . 1 . . . . 1 . . . . . . . . . Garrison Index 1 | . . . . . . 1 . . . . . . . . . . . . . . Alert Level 11 | . . . . . 1 2 . . . . 3 . 1 1 . 3 . . . . Unreport Threat 13 | . 1 . . . 1 1 . . . . 2 . 4 . . 4 . . . . Locate Traps 45 | . 5 . . . 1 6 . . . . 9 . 11 4 . 9 . . . . Disarm Traps 1 | . 1 . . . . . . . . . . . . . . . . . . . Reprogram Traps 2 | . . . . . . . . . . . 2 . . . . . . . . . Recall Investigation 2 | . 1 . . . . 1 . . . . . . . . . . . . . . Recall Extermination 7 | . . . . . . 2 . . . . 3 . 1 . . 1 . . . . Recall Reinforcements 4 | . . . . . 1 . . . . . 2 . . . . 1 . . . . Hauler Manifests 5 | . . . . . . 1 . . . . 1 . 1 1 . 1 . . . . Registered Components 2 | . . . . . . 1 . . . . . . . . . 1 . . . . Registered Prototypes 6 | . . . . . . 1 . . . . 1 . 1 1 . 2 . . . . Zone Layout 19 | . 1 . . . 2 3 . . . . 2 . 4 2 . 5 . . . . EX-Prototype ID Bank 1 | . . . 1 . . . . . . . . . . . . . . . . . Fabricator Hacks 26 | . . . . . . 2 . . . . 5 . 6 6 . 7 . . . . Network Status 5 | . . . . . . . . . . . 2 . 1 . . 2 . . . . Load Schematic 7 | . . . . . . 1 . . . . 1 . 1 2 . 2 . . . . Build 14 | . . . . . . 1 . . . . 2 . 4 4 . 3 . . . . Repair Station Hacks 15 | . 4 . . . 2 2 . . . . 5 . . . . 2 . . . . Scan Component 7 | . 2 . . . 1 . . . . . 3 . . . . 1 . . . . Repair 6 | . 2 . . . 1 . . . . . 2 . . . . 1 . . . . Refit 2 | . . . . . . 2 . . . . . . . . . . . . . . Recycling Unit Hacks 7 | . . . . . 1 . . . . . 3 . 2 . . 1 . . . . Report Inventory 7 | . . . . . 1 . . . . . 3 . 2 . . 1 . . . . Scanalyzer . | . . . . . . . . . . . . . . . . . . . . . Garrison Access Hacks 7 | . . . . . 1 1 . . . . 1 . 2 1 . 1 . . . . Seal Access 7 | . . . . . 1 1 . . . . 1 . 2 1 . 1 . . . . Unauthorized Hacks 57 | . 4 . . . 2 5 . . . . 12 . 12 10 . 12 . . . . Terminals 38 | . 4 . . . 2 4 . . . . 8 . 9 5 . 6 . . . . Track 3 | . 2 . . . 1 . . . . . . . . . . . . . . . Botnet 34 | . 2 . . . 1 4 . . . . 7 . 9 5 . 6 . . . . Operators 1 | . . . . . . . . . . . 1 . . . . . . . . . Fabricators 19 | . . . . . . 1 . . . . 4 . 3 5 . 6 . . . . Report 4 | . . . . . . . . . . . 1 . 1 1 . 1 . . . . Prioritize 6 | . . . . . . . . . . . 1 . 1 2 . 2 . . . . Siphon 6 | . . . . . . . . . . . 1 . 1 2 . 2 . . . . Haulers 3 | . . . . . . 1 . . . . 1 . . . . 1 . . . . Repair Stations . | . . . . . . . . . . . . . . . . . . . . . Recycling Units . | . . . . . . . . . . . . . . . . . . . . . Scanalyzers . | . . . . . . . . . . . . . . . . . . . . . Garrison Access . | . . . . . . . . . . . . . . . . . . . . . Data Cores Recovered 2 | . . . . . . 2 . . . . . . . . . . . . . . Used . | . . . . . . . . . . . . . . . . . . . . . Hacking Detections 54 | . 6 . . . 5 15 . . . . 7 . 10 5 . 6 . . . . Full Trace Events . | . . . . . . . . . . . . . . . . . . . . . Feedback Events . | . . . . . . . . . . . . . . . . . . . . . Feedback Blocked . | . . . . . . . . . . . . . . . . . . . . . Robot Schematics Acquired . | . . . . . . . . . . . . . . . . . . . . . Robots Built . | . . . . . . . . . . . . . . . . . . . . . Matter . | . . . . . . . . . . . . . . . . . . . . . Time . | . . . . . . . . . . . . . . . . . . . . . Total Robot Build Rating . | . . . . . . . . . . . . . . . . . . . . . Part Schematics Acquired 14 | . . . . . 2 1 . . 2 . 1 . 2 3 . 3 . . . . Parts Built 13 | . . . . . . 1 . . . . 2 . 4 3 . 3 . . . . Matter 2686 | . . . . . . 146 . . . . 426 . 636 689 . 789 . . . . Time 517 | . . . . . . 73 . . . . 76 . 104 109 . 155 . . . . Total Part Build Rating 75 | . . . . . . 3 . . . . 10 . 24 17 . 21 . . . . Parts Repaired 6 | . 2 . . . 1 . . . . . 2 . . . . 1 . . . . Time 176 | . 52 . . . 32 . . . . . 54 . . . . 38 . . . . Parts Recycled . | . . . . . . . . . . . . . . . . . . . . . Recycled Matter . | . . . . . . . . . . . . . . . . . . . . . Retrieved Matter . | . . . . . . . . . . . . . . . . . . . . . Retrieved Components . | . . . . . . . . . . . . . . . . . . . . . Parts Scanalyzed . | . . . . . . . . . . . . . . . . . . . . . Part Schematics Acquired . | . . . . . . . . . . . . . . . . . . . . . Parts Damaged . | . . . . . . . . . . . . . . . . . . . . . Bothacking | -11 -10 -10 -10 -9 -8 -7 -7 -7 -7 -6 -6 -6 -6 -5 -5 -5 -5 -5 -5 -4 ------------ Run | Scr Mat Min Exi Min Mat Fac Low Low Dat Pro Fac Was Fac Fac Was Fac Upp Upp War Pro Used RIF Installer . | . . . . . . . . . . . . . . . . . . . . . Robots Hacked 9 | . . . . . . 1 . . 1 . 4 1 . . . . . . 2 . Non-combat 5 | . . . . . . 1 . . . . 4 . . . . . . . . . Combat 4 | . . . . . . . . . 1 . . 1 . . . . . . 2 . Robot Hacks Applied 9 | . . . . . . 1 . . 1 . 4 1 . . . . . . 2 . parse_system 4 | . . . . . . . . . 1 . . 1 . . . . . . 2 . find_chute 4 | . . . . . . . . . . . 4 . . . . . . . . . find_fabricator 1 | . . . . . . 1 . . . . . . . . . . . . . . Relay Couplers Released . | . . . . . . . . . . . . . . . . . . . . . Robots Rewired . | . . . . . . . . . . . . . . . . . . . . . Allies Hacked . | . . . . . . . . . . . . . . . . . . . . . Hacks Repelled . | . . . . . . . . . . . . . . . . . . . . . Allies | -11 -10 -10 -10 -9 -8 -7 -7 -7 -7 -6 -6 -6 -6 -5 -5 -5 -5 -5 -5 -4 -------- Run | Scr Mat Min Exi Min Mat Fac Low Low Dat Pro Fac Was Fac Fac Was Fac Upp Upp War Pro Total Allies 6 | . . 4 . 1 . . . . . . . 1 . . . . . . . . Largest Group 4 | . . 3 3 4 1 . . . . . . 1 . . . . . . . . Highest-Rated Group 71 | . . 40 40 71 31 . . . . . . 31 . . . . . . . . Highest-Rated Ally 31 | . . 31 16 31 31 . . . . . . 31 . . . . . . . . Total Orders 1 | . . . . . . . . . . 1 . . . . . . . . . . EXPLORE 1 | . . . . . . . . . . 1 . . . . . . . . . . Ally Attacks 60 | . . 22 . 25 1 . . . . . . 12 . . . . . . . . Total Damage 779 | . . 194 . 310 20 . . . . . . 255 . . . . . . . . Kills 9 | . . 5 . 4 . . . . . . . . . . . . . . . . Allies Corrupted . | . . . . . . . . . . . . . . . . . . . . . Allies Melted 1 | . . . . . . . . . . . . . . . . . . . 1 . Intel | -11 -10 -10 -10 -9 -8 -7 -7 -7 -7 -6 -6 -6 -6 -5 -5 -5 -5 -5 -5 -4 ------- Run | Scr Mat Min Exi Min Mat Fac Low Low Dat Pro Fac Was Fac Fac Was Fac Upp Upp War Pro Robot Analysis Total 6 | . 1 . . . . 1 . . . . . . 1 . . 3 . . . . Derelict Logs Recovered 11 | . . 2 . 1 . . 1 1 . 1 . . . . . . 3 2 . . Drone Launches 2 | . . . . . . . . . . 2 . . . . . . . . . . Drone Recoveries . | . . . . . . . . . . . . . . . . . . . . . Exploration | -11 -10 -10 -10 -9 -8 -7 -7 -7 -7 -6 -6 -6 -6 -5 -5 -5 -5 -5 -5 -4 ------------- Run | Scr Mat Min Exi Min Mat Fac Low Low Dat Pro Fac Was Fac Fac Was Fac Upp Upp War Pro Turns Passed 12779 | 45 1171 684 478 451 2046 1708 108 112 70 933 1804 98 817 430 22 787 111 148 398 358 Spaces Moved 14828 | 33 730 472 300 311 998 2141 266 242 116 787 2722 189 1442 675 71 1404 276 378 791 484 Core 2 | 2 . . . . . . . . . . . . . . . . . . . . Treads 2 | . . . . . 2 . . . . . . . . . . . . . . . Legs . | . . . . . . . . . . . . . . . . . . . . . Wheels 2840 | 31 730 472 300 311 996 . . . . . . . . . . . . . . . Hover . | . . . . . . . . . . . . . . . . . . . . . Flight 11984 | . . . . . . 2141 266 242 116 787 2722 189 1442 675 71 1404 276 378 791 484 Fastest Speed 27 | 50 100 130 130 130 140 32 32 32 32 32 32 32 32 27 27 27 27 27 27 27 Average Speed 49 | 96 106 130 130 130 140 32 32 32 32 32 32 32 32 30 27 27 27 27 27 27 Slowest Speed 230 | 100 130 130 130 140 230 32 32 32 32 32 32 32 32 32 27 27 27 27 27 27 Overloaded Moves . | . . . . . . . . . . . . . . . . . . . . . Propulsion Burnouts . | . . . . . . . . . . . . . . . . . . . . . Robots Hopped 26 | . . . . . . 13 . . . . 12 . . . . . . . . 1 Cave-ins Triggered . | . . . . . . . . . . . . . . . . . . . . . Time Travels 1 | . . . . . . . . . 1 . . . . . . . . . . . Exploration Rate (%) 61 | 4 90 99 70 63 77 52 52 47 77 88 55 77 45 16 71 33 46 67 87 71 Regions Visited 20 Branch Regions 11 Pre-discovered Areas 4 | . . . 1 1 . . . . 1 . . . . . . . 1 . . . Known Exits Taken 12 | . . 1 . . 1 1 1 1 1 1 . . 1 . . 1 1 1 1 . Unknown Exits Taken 4 | 1 1 . 1 1 . . . . . . . . . . . . . . . . Scrap Searched 13 | . . 2 . 1 . . 1 3 . 2 . . . . . . . 2 . 2 Spaces Dug 253 | . . . . . . 71 1 2 4 19 61 . 27 10 . 39 2 3 6 8 Terrain Destroyed 318 | . 18 . . . 31 71 1 2 4 19 61 . 27 10 . 39 2 19 6 8 Melee 253 | . . . . . . 71 1 2 4 19 61 . 27 10 . 39 2 3 6 8 Projectile . | . . . . . . . . . . . . . . . . . . . . . AOE 65 | . 18 . . . 31 . . . . . . . . . . . . 16 . . Actions | -11 -10 -10 -10 -9 -8 -7 -7 -7 -7 -6 -6 -6 -6 -5 -5 -5 -5 -5 -5 -4 --------- Run | Scr Mat Min Exi Min Mat Fac Low Low Dat Pro Fac Was Fac Fac Was Fac Upp Upp War Pro Total 19527 | 42 1021 536 389 345 1546 3000 286 272 133 1437 3495 223 1742 882 73 1742 308 415 966 674 Wait 3866 | . 199 52 86 22 413 698 16 29 4 630 568 33 258 188 3 282 31 32 155 167 Move 14764 | 32 729 471 299 310 997 2116 265 241 115 786 2702 188 1441 675 70 1403 275 377 790 482 Hop 20 | . . . . . . 11 . . . . 8 . . . . . . . . 1 Pick Up 74 | 4 18 4 2 2 20 11 . . 2 . 4 . 1 2 . 2 . . 2 . Fast Attach 38 | 6 3 . . . 10 2 2 . . . 7 . . 1 . 3 . . 4 . Attach 17 | . . . . . 2 9 1 . 1 . 2 . . 2 . . . . . . Detach 6 | . . . . . 2 1 . . . . 2 . . . . 1 . . . . Swap 38 | . 8 . . 3 7 4 . . 1 1 5 . 4 1 . 2 . 1 1 . Drop 94 | . 9 4 2 2 31 23 1 . . . 8 . 2 3 . 3 . . 6 . Fire 132 | . 55 5 . 6 64 . . . . . . . . . . . . 2 . . Melee 370 | . . . . . . 110 1 2 10 19 98 2 36 10 . 45 2 3 8 24 Ram . | . . . . . . . . . . . . . . . . . . . . . Kick . | . . . . . . . . . . . . . . . . . . . . . Crush . | . . . . . . . . . . . . . . . . . . . . . Escape Stasis 87 | . . . . . . 15 . . . . 72 . . . . . . . . . Rewire . | . . . . . . . . . . . . . . . . . . . . . Trap 20 | . . . . . . . . . . . 19 . . . . 1 . . . . Miscellaneous 1 | . . . . . . . . . . 1 . . . . . . . . . . Route ------- -11/Scrapyard -10/Materials (discovered 4 exits: [*Mat x3] / [*Min]) -10/Mines (discovered 3 exits: [*Mat x2] / *Exi) -10/Exiles (discovered 2 exits: [*Min x2]) -9/Mines -8/Materials (discovered 3 exits: *Fac x3) -7/Factory (discovered 4 exits: *Fac / *Sto / *Low x2) -7/Lower Caves -7/Lower Caves (discovered 2 exits: Fac / *Dat) -7/Data Miner -6/Proximity Caves -6/Factory (discovered 5 exits: *Fac x4 / *Low) -6/Waste -6/Factory (discovered 4 exits: *Fac x4) -5/Factory (discovered 4 exits: Upp x2 / Ext x2) -5/Waste -5/Factory (discovered 5 exits: *Fac / *Upp x2 / *Ext x2) -5/Upper Caves -5/Upper Caves -5/Warlord -4/Proximity Caves (discovered 1 exit: *Fac) History --------- Turn | Location | Event 30 | -11/Scrapyard | Discovered new exit (range 15) 46 | -11/Scrapyard | Entered Materials 307 | -10/Materials | Build established: Mutant 394 | -10/Materials | Discovered new exit (range 7) 485 | -10/Materials | Discovered new exit (range 8) 487 | -10/Materials | Central database locked down 573 | -10/Materials | Discovered new exit (range 11) 1075 | -10/Materials | Discovered new exit (range 8) 1110 | -10/Materials | Repaired Assault Rifle 1136 | -10/Materials | Repaired Lgt. Assault Rifle 1217 | -10/Materials | Entered Mines 1258 | -10/Mines | Received a Mining Laser from a helpful Derelict 1451 | -10/Mines | Learned 4 Materials zone layouts 1548 | -10/Mines | Assisted by bots powering up and referring to "LRC-V3" 1618 | -10/Mines | Discovered new exit (range 9) 1625 | -10/Mines | Identified exit to Exiles 1716 | -10/Mines | Discovered new exit (range 7) 1891 | -10/Mines | Deemed a non-threat by the Exiles lab entrance 1901 | -10/Mines | Entered Exiles 1901 | -10/Exiles | Accompanied by 3 allies 1922 | -10/Exiles | Discovered new exit (range 15) 1937 | -10/Exiles | Met 8R-AWN 1956 | -10/Exiles | Met EX-HEX 2015 | -10/Exiles | Met EX-DEC 2083 | -10/Exiles | Learned location of Zion (-6) 2107 | -10/Exiles | Met EX-BIN 2125 | -10/Exiles | Aligned with FarCom system 2126 | -10/Exiles | Given EX-Vault access code 2156 | -10/Exiles | Opened EX-Vault 2165 | -10/Exiles | Found Chronowheel 2169 | -10/Exiles | Found Latent Energy Streamer 2198 | -10/Exiles | Warned to stay clear of 0b10 Research branches 2212 | -10/Exiles | Exiles lab attacked by MAIN.C 2283 | -10/Exiles | Discovered new exit (range 10) 2379 | -10/Exiles | Stole two prototypes: Chronowheel, Latent Energy Streamer 2379 | -10/Exiles | Entered Mines 2379 | -9/Mines | Accompanied by 3 allies 2382 | -9/Mines | Met a Derelict bent on vengeance 2460 | -9/Mines | Learned location of Storage (-7) 2498 | -9/Mines | Escorted by a lone wolf Derelict 2542 | -9/Mines | Assembled infested the area 2547 | -9/Mines | Assisted by a Guerilla fighting off Assembled 2757 | -9/Mines | Discovered new exit (range 15) 2830 | -9/Mines | Entered Materials 2830 | -8/Materials | Accompanied by 1 ally 2830 | -8/Materials | Evolved 4 slots: Utility x4 2831 | -8/Materials | Identified exit to Factory 3458 | -8/Materials | Discovered exit to Factory (range 10) 3753 | -8/Materials | Repaired Med. Armor Plating 4696 | -8/Materials | Discovered exit to Factory (range 19) 4876 | -8/Materials | Entered Factory 4876 | -7/Factory | Evolved 2 slots: Utility x2 4878 | -7/Factory | FarCom data flow suspended 4956 | -7/Factory | Discovered new exit (range 8) 5170 | -7/Factory | Build established: Hacker-Sprinter 5411 | -7/Factory | Fabricated Adv. Sensor Array (x1) 5550 | -7/Factory | Discovered new exit (range 16) 5616 | -7/Factory | Discovered new exit (range 8) 5647 | -7/Factory | Identified exit to Lower Caves 5686 | -7/Factory | Central database locked down 6026 | -7/Factory | Discovered new exit (range 11) 6034 | -7/Factory | Identified exit to Storage 6584 | -7/Factory | Entered Lower Caves 6597 | -7/Lower Caves | Found Alien Artifact 6597 | -7/Lower Caves | Identified Core Expander 6597 | -7/Lower Caves | Installed Core Expander, added new Weapon slot 6641 | -7/Lower Caves | Learned 12 Factory zone layouts 6688 | -7/Lower Caves | Discovered new exit (range 13) 6692 | -7/Lower Caves | Identified exit to Lower Caves 6692 | -7/Lower Caves | Entered another Lower Caves area 6794 | -7/Lower Caves | Discovered new exit (range 16) 6801 | -7/Lower Caves | Identified exit to Factory 6803 | -7/Lower Caves | Identified exit to Data Miner 6804 | -7/Lower Caves | Entered Data Miner 6804 | -7/Data Miner | Discovered new exit (range 6) 6811 | -7/Data Miner | Met Data Miner 6822 | -7/Data Miner | Learned location of Section 7 (-2) 6822 | -7/Data Miner | Acquired the access code to Warlord's prototype stash 6826 | -7/Data Miner | Received God Mode back door access code from Data Miner 6836 | -7/Data Miner | Activated Chronowheel 6836 | -7/Data Miner | Spacetime reconverged on an earlier point 6840 | -7/Data Miner | Destroyed Data Miner 6843 | -7/Data Miner | Found Quantum Router 6844 | -7/Data Miner | Found Ghost Barrier 6847 | -7/Data Miner | Data Conduit disabled 6874 | -7/Data Miner | Identified exit to Proximity Caves 6874 | -7/Data Miner | Entered Proximity Caves 7503 | -6/Proximity Caves | Spotted B-75 Beast 7807 | -6/Proximity Caves | Entered Factory 7807 | -6/Factory | Evolved 2 slots: Utility x2 7808 | -6/Factory | Identified exit to Factory 7808 | -6/Factory | Identified exit to Lower Caves 7860 | -6/Factory | Fabricated Exp. Sensor Array (x1) 7900 | -6/Factory | Fabricated Exp. Sensor Array (x1) 7968 | -6/Factory | Repaired Imp. Cesium-ion Thruster 7988 | -6/Factory | Repaired Imp. Light Armor Plating 8004 | -6/Factory | Local fabrication network quarantined 8082 | -6/Factory | Found Prototype Processor 8082 | -6/Factory | Identified Exp. Terrain Scan Processor 8277 | -6/Factory | Build established: Wizard-Sprinter 9033 | -6/Factory | Found Exp. Signal Interpreter 9611 | -6/Factory | Manually triggered Chute Trap 9611 | -6/Factory | Sucked down chute 9611 | -6/Factory | Entered Waste 9612 | -6/Waste | Met a frightened Derelict 9633 | -6/Waste | Spotted C-40 Crusher 9658 | -6/Waste | Spotted C-40 Crusher 9659 | -6/Waste | Spotted C-40 Crusher 9695 | -6/Waste | Spotted C-40 Crusher 9700 | -6/Waste | Spotted C-40 Crusher 9705 | -6/Waste | Discovered new exit (range 11) 9706 | -6/Waste | Spotted C-40 Crusher 9709 | -6/Waste | Identified exit to Factory 9709 | -6/Waste | Entered Factory 9898 | -6/Factory | Fabricated Adv. Hacking Suite (x1) 9926 | -6/Factory | Fabricated Adv. Hacking Suite (x1) 9953 | -6/Factory | Fabricated Adv. Hacking Suite (x1) 9981 | -6/Factory | Fabricated Adv. Hacking Suite (x1) 10017 | -6/Factory | Local fabrication network quarantined 10041 | -6/Factory | Discovered exit to Factory (range 4) 10094 | -6/Factory | Assembled infested ambush trap array 10526 | -6/Factory | Entered another Factory area 10526 | -5/Factory | Evolved 2 slots: Utility x2 10530 | -5/Factory | Identified exit to Upper Caves 10530 | -5/Factory | Identified exit to Extension 10797 | -5/Factory | Fabricated Exp. Utility Shielding? 10860 | -5/Factory | Fabricated Exp. Cesium-ion Thruster (x1) 10905 | -5/Factory | Fabricated Exp. Cesium-ion Thruster (x1) 10956 | -5/Factory | Sucked down chute 10956 | -5/Factory | Entered Waste 10961 | -5/Waste | Spotted C-40 Crusher 10965 | -5/Waste | Spotted C-40 Crusher 10969 | -5/Waste | Spotted C-40 Crusher 10972 | -5/Waste | Spotted C-40 Crusher 10975 | -5/Waste | Discovered new exit (range 13) 10978 | -5/Waste | Identified exit to Factory 10978 | -5/Waste | Entered Factory 11100 | -5/Factory | Fabricated Mni. Fusion Reactor (x1) 11135 | -5/Factory | Fabricated Mni. Fusion Reactor (x1) 11140 | -5/Factory | Spotted B-75 Beast 11262 | -5/Factory | Fabricated Plasma Lance? 11276 | -5/Factory | Local fabrication network quarantined 11321 | -5/Factory | Discovered new exit (range 13) 11383 | -5/Factory | Repaired Imp. Datajack 11589 | -5/Factory | Identified exit to Factory 11765 | -5/Factory | Entered Upper Caves 11844 | -5/Upper Caves | Spotted B-75 Beast 11857 | -5/Upper Caves | Learned 12 Factory zone layouts 11869 | -5/Upper Caves | Learned 4 Factory zone layouts 11869 | -5/Upper Caves | Discovered new exit (range 12) 11871 | -5/Upper Caves | Identified exit to Upper Caves 11876 | -5/Upper Caves | Entered another Upper Caves area 11902 | -5/Upper Caves | Learned 12 Factory zone layouts 11937 | -5/Upper Caves | Identified exit to Warlord 11952 | -5/Upper Caves | Spotted MY-E06(f) 11953 | -5/Upper Caves | Encountered a Master Thief 12024 | -5/Upper Caves | Entered Warlord 12174 | -5/Warlord | Met Warlord 12176 | -5/Warlord | Opened Warlord's prototype stash 12181 | -5/Warlord | Found Prototype Device 12181 | -5/Warlord | Identified System Purifier 12196 | -5/Warlord | Warlord's base attacked by MAIN.C 12420 | -5/Warlord | Discovered new exit (range 8) 12421 | -5/Warlord | Identified exit to Proximity Caves 12422 | -5/Warlord | Entered Proximity Caves 12630 | -4/Proximity Caves | Spotted 0E-KJH(f) 12632 | -4/Proximity Caves | Spotted I7-HLQ(f) 12633 | -4/Proximity Caves | Encountered a Master Thief 12633 | -4/Proximity Caves | Encountered a Master Thief 12669 | -4/Proximity Caves | Destroyed I7-HLQ(f) 12690 | -4/Proximity Caves | Destroyed 0E-KJH(f) 12779 | -4/Proximity Caves | Discovered exit to Factory (range 9) 12780 | -4/Proximity Caves | Self-destructed Last Messages --------------- GOAL=ESCAPE 12435_ Searching scrap... 12435_ Found 23 Matter. 12435_ Found Mak. Hammer. 12537_ Searching scrap... 12537_ Found 29 Matter. 12537_ Found Lrg. Matter Pod. 12537_ Found Imp. Heat Shielding. 12659_ Quantum Router ripped off. 12659_ Ghost Barrier ripped off. 12669_ I7-HLQ(f) destroyed. 12669_ Scythe follow-up attack on 0E-KJH(f). 12690_ 0E-KJH(f) destroyed. 12769_ Sneak attack on M-30 Cleanser. 12769_ Destroyed Wheel. 12769_ Destroyed Lgt. Ion Engine. 12769_ Destroyed Adv. Datajack. 12769_ Destroyed Wheel. 12774_ M-30 Cleanser destroyed. 12779_ EXIT=FOUND: FACTORY Map ----- +----------------------------------------------------+ | ??????????????????????????????????##?????????????? | | ##???????####???????????????????## ##????????????? | | ??????## ##??????????????????# #????????????? | | ????## #???????????######## #????????????? | | ????# #???????????#%= #????????????? | | #???? #????????????#!!! ##????????????? | | ##### ##???????????#=%#### #?????????????? | | ## ##???####???#=*##?# #?????????????? | | ##??# ##?#=!!#### #?????????????? | | # #??# ###* ######?????????????? | | #### #??# ##???????????????? | | ???# #??## ##??????????????? | | ???# #???## ## ##?????????????? | | ### ##???## ### #?????????????? | | ##???## ### #?????????????? | | #????## ## #?????????????? | | ## #?????#### ##????????????? | | ?#### #????????# #????????????? | | ????# #####?????# #????????????? | | ##### ### ##????# ##????????????? | | # ## ##??## #?????????????? | | #### #?????????????? | | &## ##????????????? | | ##### &%& #????????????? | | ##???# &!## #????????????? | | ##????## @### ##????????????? | | ##?????## ## ##?## ##?????????????? | | #??????# ### ##???## #??????????????? | | #?????# ### ##?????## ##??????????????? | | ## #????# ## #???????##"#??????????????? | | ?## #?## ### #???????#"##??????????????? | | ??# #?# #?#